fUST/lending_fUST_20250724
["ID","MTS","AMOUNT","RATE_DAILY","PERIOD"]
[374578093,1753361453849,-590.12041539,0.00020927,2]
[374578094,1753361453860,-260.0,0.00020989,2]
[374578095,1753361453870,-1000.0,0.00021,2]
[374578096,1753361453882,-500.0,0.00021064,2]
[374578097,1753361453892,-1674.18014597,0.00021072,4]
[374578098,1753361453903,-151.0,0.00021095,2]
[374578099,1753361453913,-151.0,0.00021095,2]
[374578100,1753361453923,-151.0,0.00021095,2]
[374578101,1753361453935,-305.714176,0.00021095,2]
[374578102,1753361453948,-305.714176,0.00021095,2]
[374578103,1753361453959,-430.26559,0.00021095,2]
[374578104,1753361453971,-151.0,0.00021095,2]
[374578105,1753361453982,-151.0,0.00021095,2]
[374578106,1753361453992,-430.26559,0.00021095,2]
[374578107,1753361454002,-460.0,0.00021095,2]
[374578108,1753361454012,-737.21,0.00021095,2]
[374578109,1753361454023,-460.0,0.00021095,2]
[374578110,1753361454033,-460.0,0.00021095,2]
[374578111,1753361454044,-460.0,0.00021095,2]
[374578112,1753361454055,-460.0,0.00021095,2]
[374578113,1753361454065,-460.0,0.00021095,2]
[374578114,1753361454075,-460.0,0.00021095,2]
[374578115,1753361454086,-460.0,0.00021095,2]
[374578116,1753361454096,-460.0,0.00021095,2]
[374578117,1753361454106,-460.0,0.00021095,2]
[374578118,1753361454115,-460.0,0.00021095,2]
[374578119,1753361454125,-460.0,0.00021095,2]
[374578120,1753361454137,-460.0,0.00021095,2]
[374578121,1753361454147,-460.0,0.00021095,2]
[374578122,1753361454157,-460.0,0.00021095,2]
[374578123,1753361454166,-460.0,0.00021095,2]
[374578124,1753361454176,-460.0,0.00021095,2]
[374578125,1753361454185,-460.0,0.00021095,2]
[374578126,1753361454195,-460.0,0.00021095,2]
[374578127,1753361454206,-460.0,0.00021095,2]
[374578128,1753361454216,-460.0,0.00021095,2]
[374578129,1753361454226,-460.0,0.00021095,2]
[374578130,1753361454235,-460.0,0.00021095,2]
[374578131,1753361454245,-460.0,0.00021095,2]
[374578132,1753361454255,-460.0,0.00021095,2]
[374578133,1753361454264,-186.28137968,0.00021095,2]
[374578134,1753361454274,-460.0,0.00021095,2]
[374578135,1753361454284,-460.0,0.00021095,2]
[374578136,1753361454293,-470.8700511,0.00021095,2]
[374578137,1753361454303,-460.0,0.00021095,2]
[374578138,1753361454313,-460.0,0.00021095,2]
[374578139,1753361454323,-1581.12,0.00021095,2]
[374578140,1753361454333,-738.04,0.00021095,2]
[374578141,1753361454343,-1484.39,0.00021095,2]
[374578142,1753361454353,-336.67,0.00021095,2]
[374578143,1753361454362,-460.0,0.00021095,2]
[374578144,1753361454371,-460.0,0.00021095,2]
[374578145,1753361454382,-460.0,0.00021095,2]
[374578146,1753361454392,-460.0,0.00021095,2]
[374578147,1753361454402,-789.29,0.00021095,2]
[374578148,1753361454412,-460.0,0.00021095,2]
[374578149,1753361454422,-460.0,0.00021095,2]
[374578150,1753361454432,-842.97,0.00021095,2]
[374578151,1753361454443,-460.0,0.00021095,2]
[374578152,1753361454454,-1729.15,0.00021095,2]
[374578153,1753361454463,-460.0,0.00021095,2]
[374578154,1753361454474,-515.47,0.00021095,2]
[374578155,1753361454484,-460.0,0.00021095,2]
[374578156,1753361454494,-460.0,0.00021095,2]
[374578157,1753361454504,-460.0,0.00021095,2]
[374578158,1753361454515,-460.0,0.00021095,2]
[374578159,1753361454526,-462.73,0.00021095,2]
[374578160,1753361454536,-460.0,0.00021095,2]
[374578161,1753361454546,-460.0,0.00021095,2]
[374578162,1753361454556,-460.0,0.00021095,2]
[374578163,1753361454567,-534.52,0.00021095,2]
[374578164,1753361454577,-460.0,0.00021095,2]
[374578165,1753361454587,-460.0,0.00021095,2]
[374578166,1753361454597,-460.0,0.00021095,2]
[374578167,1753361454607,-460.0,0.00021095,2]
[374578168,1753361454617,-474.63,0.00021095,2]
[374578169,1753361454773,-494.14,0.00021095,2]
[374578170,1753361454785,-4098.54,0.00021095,2]
[374578171,1753361454795,-613.8,0.00021095,2]
[374578172,1753361454805,-460.0,0.00021095,2]
[374578173,1753361454816,-710.33,0.00021095,2]
[374578174,1753361454834,-1354.19,0.00021095,2]
[374578175,1753361454844,-460.0,0.00021095,2]
[374578176,1753361454854,-460.0,0.00021095,2]
[374578177,1753361454864,-557.79,0.00021095,2]
[374578178,1753361454873,-460.0,0.00021095,2]
[374578179,1753361454889,-460.0,0.00021095,2]
[374578180,1753361454899,-608.79,0.00021095,2]
[374578181,1753361454909,-460.0,0.00021095,2]
[374578182,1753361454920,-460.0,0.00021095,2]
[374578183,1753361454931,-716.07,0.00021095,2]
[374578184,1753361454942,-460.0,0.00021095,2]
[374578185,1753361454953,-2936.37,0.00021095,2]
[374578186,1753361454964,-1289.01,0.00021095,2]
[374578187,1753361454974,-460.0,0.00021095,2]
[374578188,1753361454985,-460.0,0.00021095,2]
[374578189,1753361454996,-460.0,0.00021095,2]
[374578190,1753361455007,-460.0,0.00021095,2]
[374578191,1753361455017,-849.86,0.00021095,2]
[374578192,1753361455028,-460.0,0.00021095,2]
[374578193,1753361455038,-460.0,0.00021095,2]
[374578194,1753361455048,-2502.37,0.00021095,2]
[374578195,1753361455058,-2616.6,0.00021095,2]
[374578196,1753361455068,-1164.14,0.00021095,2]
[374578197,1753361455078,-460.0,0.00021095,2]
[374578198,1753361455088,-1050.05,0.00021095,2]
[374578199,1753361455098,-460.0,0.00021095,2]
[374578200,1753361455108,-460.0,0.00021095,2]
[374578201,1753361455118,-460.0,0.00021095,2]
[374578202,1753361455127,-460.0,0.00021095,2]
[374578203,1753361455141,-1674.18014597,0.00021245,4]
[374578204,1753361455151,-500.0,0.00021254,2]
[374578205,1753361455161,-500.0,0.00021254,2]
[374578206,1753361455170,-500.0,0.00021254,2]
[374578207,1753361455180,-500.31804184,0.00021254,2]
[374578208,1753361455189,-227.2,0.00021267,4]
[374578209,1753361455199,-151.0,0.00021369,2]
[374578210,1753361455208,-460.0,0.00021369,2]
[374578211,1753361455219,-737.21,0.00021369,2]
[374578212,1753361455230,-414.94840566,0.00021369,2]
[374578213,1753361455239,-460.0,0.00021369,2]
[374578214,1753361455249,-460.0,0.00021369,2]
[374578215,1753361455259,-544.04902487,0.00021369,2]
[374578216,1753361455268,-460.0,0.00021369,2]
[374578217,1753361455277,-460.0,0.00021369,2]
[374578218,1753361455286,-460.0,0.00021369,2]
[374578219,1753361455296,-460.0,0.00021369,2]
[374578220,1753361455306,-460.0,0.00021369,2]
[374578221,1753361455315,-460.0,0.00021369,2]
[374578222,1753361455325,-460.0,0.00021369,2]
[374578223,1753361455335,-460.0,0.00021369,2]
[374578224,1753361455344,-460.0,0.00021369,2]
[374578225,1753361455354,-460.0,0.00021369,2]
[374578226,1753361455364,-460.0,0.00021369,2]
[374578227,1753361455373,-495.41995814,0.00021369,2]
[374578228,1753361455385,-468.46542472,0.00021369,2]
[374578229,1753361455395,-460.0,0.00021369,2]
[374578230,1753361455404,-460.0,0.00021369,2]
[374578231,1753361455414,-460.0,0.00021369,2]
[374578232,1753361455423,-460.0,0.00021369,2]
[374578233,1753361455433,-460.0,0.00021369,2]
[374578234,1753361455444,-460.0,0.00021369,2]
[374578235,1753361455454,-460.0,0.00021369,2]
[374578236,1753361455465,-460.0,0.00021369,2]
[374578237,1753361455475,-460.0,0.00021369,2]
[374578238,1753361455488,-1581.12,0.00021369,2]
[374578239,1753361455500,-738.04,0.00021369,2]
[374578240,1753361455510,-1484.39,0.00021369,2]
[374578241,1753361455520,-460.0,0.00021369,2]
[374578242,1753361455530,-460.0,0.00021369,2]
[374578243,1753361455540,-460.0,0.00021369,2]
[374578244,1753361455549,-460.0,0.00021369,2]
[374578245,1753361455558,-789.29,0.00021369,2]
[374578246,1753361455567,-460.0,0.00021369,2]
[374578247,1753361455577,-842.97,0.00021369,2]
[374578248,1753361455586,-460.0,0.00021369,2]
[374578249,1753361455601,-1729.15,0.00021369,2]
[374578250,1753361455620,-460.0,0.00021369,2]
[374578251,1753361455630,-515.47,0.00021369,2]
[374578252,1753361455639,-460.0,0.00021369,2]
[374578253,1753361455648,-460.0,0.00021369,2]
[374578254,1753361455659,-460.0,0.00021369,2]
[374578255,1753361455669,-460.0,0.00021369,2]
[374578256,1753361455678,-462.73,0.00021369,2]
[374578257,1753361455688,-460.0,0.00021369,2]
[374578258,1753361455699,-460.0,0.00021369,2]
[374578259,1753361455708,-460.0,0.00021369,2]
[374578260,1753361455718,-534.52,0.00021369,2]
[374578261,1753361455729,-460.0,0.00021369,2]
[374578262,1753361455739,-460.0,0.00021369,2]
[374578263,1753361455748,-460.0,0.00021369,2]
[374578264,1753361455760,-460.0,0.00021369,2]
[374578265,1753361455771,-474.63,0.00021369,2]
[374578266,1753361455780,-494.14,0.00021369,2]
[374578267,1753361455790,-4098.54,0.00021369,2]
[374578268,1753361455800,-613.8,0.00021369,2]
[374578269,1753361455810,-710.33,0.00021369,2]
[374578270,1753361455819,-1354.19,0.00021369,2]
[374578271,1753361455829,-460.0,0.00021369,2]
[374578272,1753361455839,-460.0,0.00021369,2]
[374578273,1753361455849,-557.79,0.00021369,2]
[374578274,1753361455859,-460.0,0.00021369,2]
[374578275,1753361455868,-460.0,0.00021369,2]
[374578276,1753361455879,-608.79,0.00021369,2]
[374578277,1753361455890,-460.0,0.00021369,2]
[374578278,1753361455900,-460.0,0.00021369,2]
[374578279,1753361455911,-716.07,0.00021369,2]
[374578280,1753361455921,-460.0,0.00021369,2]
[374578281,1753361455931,-2936.37,0.00021369,2]
[374578282,1753361455941,-1289.01,0.00021369,2]
[374578283,1753361455951,-460.0,0.00021369,2]
[374578284,1753361455961,-460.0,0.00021369,2]
[374578285,1753361455970,-460.0,0.00021369,2]
[374578286,1753361455977,-460.0,0.00021369,2]
[374578287,1753361455985,-849.86,0.00021369,2]
[374578288,1753361455993,-467.64022864,0.00021369,2]
[374578289,1753361456001,-460.0,0.00021369,2]
[374578290,1753361456008,-2502.37,0.00021369,2]
[374578291,1753361456017,-2616.6,0.00021369,2]
[374578292,1753361456025,-1164.14,0.00021369,2]
[374578293,1753361456032,-460.0,0.00021369,2]
[374578294,1753361456040,-1050.05,0.00021369,2]
[374578295,1753361456047,-460.0,0.00021369,2]
[374578296,1753361456057,-460.0,0.00021369,2]
[374578297,1753361456064,-460.0,0.00021369,2]
[374578298,1753361456071,-460.0,0.00021369,2]
[374578299,1753361456079,-1674.18014597,0.00021417,5]
[374578300,1753361456090,-360.0,0.00021537,2]
[374578301,1753361456099,-590.12041539,0.00021543,2]
[374578302,1753361456110,-1674.18014597,0.0002159,5]
[374578303,1753361456120,-227.2,0.00021597,4]
[374578304,1753361456132,-430.26559,0.00021643,2]
[374578305,1753361456142,-151.0,0.00021643,2]
[374578306,1753361456152,-151.0,0.00021643,2]
[374578307,1753361456161,-430.26559,0.00021643,2]
[374578308,1753361456172,-737.21,0.00021643,2]
[374578309,1753361456181,-460.0,0.00021643,2]
[374578310,1753361456191,-460.0,0.00021643,2]
[374578311,1753361456201,-460.0,0.00021643,2]
[374578312,1753361456211,-460.0,0.00021643,2]
[374578313,1753361456220,-460.0,0.00021643,2]
[374578314,1753361456229,-269.56,0.00021643,2]
[374578315,1753361456239,-460.0,0.00021643,2]
[374578316,1753361456249,-453.26988914,0.00021643,2]
[374578317,1753361456259,-460.0,0.00021643,2]
[374578318,1753361456269,-460.0,0.00021643,2]
[374578319,1753361456280,-460.0,0.00021643,2]
[374578320,1753361456292,-460.0,0.00021643,2]
[374578321,1753361456302,-460.0,0.00021643,2]
[374578322,1753361456312,-460.0,0.00021643,2]
[374578323,1753361456322,-460.0,0.00021643,2]
[374578324,1753361456331,-460.0,0.00021643,2]
[374578325,1753361456341,-460.0,0.00021643,2]
[374578326,1753361456350,-460.0,0.00021643,2]
[374578327,1753361456360,-381.13,0.00021643,2]
[374578328,1753361456370,-460.0,0.00021643,2]
[374578329,1753361456383,-467.24073675,0.00021643,2]
[374578330,1753361456393,-460.0,0.00021643,2]
[374578331,1753361456402,-1581.12,0.00021643,2]
[374578332,1753361456412,-738.04,0.00021643,2]
[374578333,1753361456421,-1484.39,0.00021643,2]
[374578334,1753361456431,-460.0,0.00021643,2]
[374578335,1753361456441,-460.0,0.00021643,2]
[374578336,1753361456452,-460.0,0.00021643,2]
[374578337,1753361456461,-460.0,0.00021643,2]
[374578338,1753361456471,-789.29,0.00021643,2]
[374578339,1753361456480,-460.0,0.00021643,2]
[374578340,1753361456491,-842.97,0.00021643,2]
[374578341,1753361456501,-460.0,0.00021643,2]
[374578342,1753361456510,-1729.15,0.00021643,2]
[374578343,1753361456520,-460.0,0.00021643,2]
[374578344,1753361456529,-515.47,0.00021643,2]
[374578345,1753361456537,-460.0,0.00021643,2]
[374578346,1753361456547,-460.0,0.00021643,2]
[374578347,1753361456556,-460.0,0.00021643,2]
[374578348,1753361456566,-460.0,0.00021643,2]
[374578349,1753361456575,-462.73,0.00021643,2]
[374578350,1753361456584,-460.0,0.00021643,2]
[374578351,1753361456593,-460.0,0.00021643,2]
[374578352,1753361456602,-460.0,0.00021643,2]
[374578353,1753361456612,-534.52,0.00021643,2]
[374578354,1753361456621,-460.0,0.00021643,2]
[374578355,1753361456634,-460.0,0.00021643,2]
[374578356,1753361456643,-460.0,0.00021643,2]
[374578357,1753361456652,-474.63,0.00021643,2]
[374578358,1753361456661,-494.14,0.00021643,2]
[374578359,1753361456670,-4098.54,0.00021643,2]
[374578360,1753361456680,-613.8,0.00021643,2]
[374578361,1753361456689,-710.33,0.00021643,2]
[374578362,1753361456698,-1354.19,0.00021643,2]
[374578363,1753361456708,-460.0,0.00021643,2]
[374578364,1753361456717,-460.0,0.00021643,2]
[374578365,1753361456726,-557.79,0.00021643,2]
[374578366,1753361456735,-460.0,0.00021643,2]
[374578367,1753361456743,-460.0,0.00021643,2]
[374578368,1753361456754,-608.79,0.00021643,2]
[374578369,1753361456764,-460.0,0.00021643,2]
[374578370,1753361456773,-460.0,0.00021643,2]
[374578371,1753361456782,-716.07,0.00021643,2]
[374578372,1753361456792,-460.0,0.00021643,2]
[374578373,1753361456802,-2936.37,0.00021643,2]
[374578374,1753361456811,-1289.01,0.00021643,2]
[374578375,1753361456820,-460.0,0.00021643,2]
[374578376,1753361456829,-460.0,0.00021643,2]
[374578377,1753361456841,-557.88599515,0.00021643,2]
[374578378,1753361456851,-460.0,0.00021643,2]
[374578379,1753361456861,-849.86,0.00021643,2]
[374578380,1753361456871,-460.0,0.00021643,2]
[374578381,1753361456885,-2616.6,0.00021643,2]
[374578382,1753361456895,-2502.37,0.00021643,2]
[374578383,1753361456905,-1164.14,0.00021643,2]
[374578384,1753361456916,-460.0,0.00021643,2]
[374578385,1753361456925,-1050.05,0.00021643,2]
[374578386,1753361456935,-460.0,0.00021643,2]
[374578387,1753361456944,-374.69,0.00021643,2]
[374578388,1753361456954,-460.0,0.00021643,2]
[374578389,1753361456964,-460.0,0.00021643,2]
[374578390,1753361456974,-1674.18014597,0.00021762,5]
[374578391,1753361456983,-265.88456767,0.00021781,2]
[374578392,1753361456992,-151.0,0.00021821,2]
[374578393,1753361457002,-215.0738,0.00021821,2]
[374578394,1753361457011,-25000.0,0.00021821,2]
[374578395,1753361457021,-3154.12167562,0.00021821,2]
[374578396,1753361457030,-151.0,0.00021917,2]
[374578397,1753361457039,-151.0,0.00021917,2]
[374578398,1753361457048,-305.714176,0.00021917,2]
[374578399,1753361457057,-305.714176,0.00021917,2]
[374578400,1753361457067,-737.21,0.00021917,2]
[374578401,1753361457076,-521.62,0.00021917,2]
[374578402,1753361457086,-454.31647254,0.00021917,2]
[374578403,1753361457095,-460.0,0.00021917,2]
[374578404,1753361457104,-460.0,0.00021917,2]
[374578405,1753361457113,-460.0,0.00021917,2]
[374578406,1753361457123,-460.0,0.00021917,2]
[374578407,1753361457138,-512.48422645,0.00021917,2]
[374578408,1753361457147,-460.0,0.00021917,2]
[374578409,1753361457156,-460.0,0.00021917,2]
[374578410,1753361457165,-460.0,0.00021917,2]
[374578411,1753361457175,-460.0,0.00021917,2]
[374578412,1753361457184,-460.0,0.00021917,2]
[374578413,1753361457194,-460.0,0.00021917,2]
[374578414,1753361457203,-460.0,0.00021917,2]
[374578415,1753361457212,-460.0,0.00021917,2]
[374578416,1753361457225,-460.0,0.00021917,2]
[374578417,1753361457234,-460.0,0.00021917,2]
[374578418,1753361457244,-1581.12,0.00021917,2]
[374578419,1753361457253,-738.04,0.00021917,2]
[374578420,1753361457262,-1484.39,0.00021917,2]
[374578421,1753361457271,-460.0,0.00021917,2]
[374578422,1753361457280,-460.0,0.00021917,2]
[374578423,1753361457290,-460.0,0.00021917,2]
[374578424,1753361457299,-460.0,0.00021917,2]
[374578425,1753361457309,-789.29,0.00021917,2]
[374578426,1753361457319,-460.0,0.00021917,2]
[374578427,1753361457330,-842.97,0.00021917,2]
[374578428,1753361457339,-460.0,0.00021917,2]
[374578429,1753361457350,-1729.15,0.00021917,2]
[374578430,1753361457360,-460.0,0.00021917,2]
[374578431,1753361457369,-515.47,0.00021917,2]
[374578432,1753361457379,-460.0,0.00021917,2]
[374578433,1753361457393,-460.0,0.00021917,2]
[374578434,1753361457403,-460.0,0.00021917,2]
[374578435,1753361457413,-363.6007509,0.00021917,2]
[374578436,1753361457423,-462.73,0.00021917,2]
[374578437,1753361457432,-460.0,0.00021917,2]
[374578438,1753361457444,-460.0,0.00021917,2]
[374578439,1753361457454,-460.0,0.00021917,2]
[374578440,1753361457464,-534.52,0.00021917,2]
[374578441,1753361457474,-460.0,0.00021917,2]
[374578442,1753361457485,-460.0,0.00021917,2]
[374578443,1753361457495,-474.63,0.00021917,2]
[374578444,1753361457504,-494.14,0.00021917,2]
[374578445,1753361457629,-4098.54,0.00021917,2]
[374578446,1753361457643,-613.8,0.00021917,2]
[374578447,1753361457653,-710.33,0.00021917,2]
[374578448,1753361457663,-1354.19,0.00021917,2]
[374578449,1753361457673,-460.0,0.00021917,2]
[374578450,1753361457683,-460.0,0.00021917,2]
[374578451,1753361457693,-557.79,0.00021917,2]
[374578452,1753361457703,-460.0,0.00021917,2]
[374578453,1753361457713,-460.0,0.00021917,2]
[374578454,1753361457723,-608.79,0.00021917,2]
[374578455,1753361457733,-460.0,0.00021917,2]
[374578456,1753361457743,-460.0,0.00021917,2]
[374578457,1753361457753,-555.19072505,0.00021917,2]
[374578458,1753361457763,-716.07,0.00021917,2]
[374578459,1753361457774,-2936.37,0.00021917,2]
[374578460,1753361457784,-1289.01,0.00021917,2]
[374578461,1753361457794,-460.0,0.00021917,2]
[374578462,1753361457803,-500.0,0.00021917,2]
[374578463,1753361457813,-486.79078975,0.00021917,2]
[374578464,1753361457823,-460.0,0.00021917,2]
[374578465,1753361457832,-460.0,0.00021917,2]
[374578466,1753361457842,-849.86,0.00021917,2]
[374578467,1753361457853,-460.0,0.00021917,2]
[374578468,1753361457863,-2616.6,0.00021917,2]
[374578469,1753361457874,-2502.37,0.00021917,2]
[374578470,1753361457887,-1164.14,0.00021917,2]
[374578471,1753361457897,-460.0,0.00021917,2]
[374578472,1753361457908,-1050.05,0.00021917,2]
[374578473,1753361457917,-460.0,0.00021917,2]
[374578474,1753361457927,-460.0,0.00021917,2]
[374578475,1753361457937,-460.0,0.00021917,2]
[374578476,1753361457947,-179.71133149,0.00021918,2]
[374578477,1753361457957,-227.2,0.00021927,5]
[374578478,1753361457967,-1674.18014597,0.00021934,6]
[374578479,1753361457976,-500.98396891,0.00021973,2]
[374578480,1753361457986,-151.0,0.00022,7]
[374578481,1753361457996,-991.2,0.00022,7]
[374578482,1753361458007,-163.0,0.00022,2]
[374578483,1753361458016,-34169.55,0.00022,2]
[374578484,1753361458026,-1000.0,0.00022,2]
[374578485,1753361458035,-6716.25,0.00022,7]
[374578486,1753361458045,-178.0,0.00022,2]
[374578487,1753361458054,-169.0,0.00022,2]
[374578488,1753361458064,-1123.41,0.00022,7]
[374578489,1753361458075,-166.67,0.00022,2]
[374578490,1753361458085,-1259.8357613,0.00022076,2]
[374578491,1753361458095,-460.0,0.00022085,2]
[374578492,1753361458106,-1674.18014597,0.00022107,6]
[374578493,1753361458115,-737.21,0.00022191,2]
[374578494,1753361458124,-460.0,0.00022191,2]
[374578495,1753361458137,-460.0,0.00022191,2]
[374578496,1753361458147,-460.0,0.00022191,2]
[374578497,1753361458156,-460.0,0.00022191,2]
[374578498,1753361458166,-460.0,0.00022191,2]
[374578499,1753361458175,-460.0,0.00022191,2]
[374578500,1753361458185,-397.99319594,0.00022191,2]
[374578501,1753361458195,-460.0,0.00022191,2]
[374578502,1753361458204,-460.0,0.00022191,2]
[374578503,1753361458214,-460.0,0.00022191,2]
[374578504,1753361458224,-460.0,0.00022191,2]
[374578505,1753361458234,-531.73,0.00022191,2]
[374578506,1753361458243,-460.0,0.00022191,2]
[374578507,1753361458253,-460.0,0.00022191,2]
[374578508,1753361458263,-1581.12,0.00022191,2]
[374578509,1753361458272,-1484.39,0.00022191,2]
[374578510,1753361458281,-460.0,0.00022191,2]
[374578511,1753361458291,-738.04,0.00022191,2]
[374578512,1753361458300,-460.0,0.00022191,2]
[374578513,1753361458310,-460.0,0.00022191,2]
[374578514,1753361458319,-460.0,0.00022191,2]
[374578515,1753361458329,-789.29,0.00022191,2]
[374578516,1753361458339,-460.0,0.00022191,2]
[374578517,1753361458349,-842.97,0.00022191,2]
[374578518,1753361458358,-460.0,0.00022191,2]
[374578519,1753361458368,-1729.15,0.00022191,2]
[374578520,1753361458378,-460.0,0.00022191,2]
[374578521,1753361458391,-515.47,0.00022191,2]
[374578522,1753361458401,-460.0,0.00022191,2]
[374578523,1753361458411,-460.0,0.00022191,2]
[374578524,1753361458420,-462.73,0.00022191,2]
[374578525,1753361458431,-460.0,0.00022191,2]
[374578526,1753361458442,-460.0,0.00022191,2]
[374578527,1753361458452,-460.0,0.00022191,2]
[374578528,1753361458462,-534.52,0.00022191,2]
[374578529,1753361458472,-460.0,0.00022191,2]
[374578530,1753361458482,-460.0,0.00022191,2]
[374578531,1753361458492,-474.63,0.00022191,2]
[374578532,1753361458502,-494.14,0.00022191,2]
[374578533,1753361458512,-4098.54,0.00022191,2]
[374578534,1753361458521,-613.8,0.00022191,2]
[374578535,1753361458532,-710.33,0.00022191,2]
[374578536,1753361458542,-1354.19,0.00022191,2]
[374578537,1753361458551,-460.0,0.00022191,2]
[374578538,1753361458561,-460.0,0.00022191,2]
[374578539,1753361458571,-557.79,0.00022191,2]
[374578540,1753361458580,-460.0,0.00022191,2]
[374578541,1753361458589,-460.0,0.00022191,2]
[374578542,1753361458599,-608.79,0.00022191,2]
[374578543,1753361458609,-460.0,0.00022191,2]
[374578544,1753361458619,-179.57,0.00022191,2]
[374578545,1753361458628,-716.07,0.00022191,2]
[374578546,1753361458641,-2936.37,0.00022191,2]
[374578547,1753361458651,-1289.01,0.00022191,2]
[374578548,1753361458660,-460.0,0.00022191,2]
[374578549,1753361458670,-460.0,0.00022191,2]
[374578550,1753361458680,-460.0,0.00022191,2]
[374578551,1753361458690,-849.86,0.00022191,2]
[374578552,1753361458700,-460.0,0.00022191,2]
[374578553,1753361458710,-2616.6,0.00022191,2]
[374578554,1753361458719,-2502.37,0.00022191,2]
[374578555,1753361458729,-1164.14,0.00022191,2]
[374578556,1753361458739,-460.0,0.00022191,2]
[374578557,1753361458749,-1050.05,0.00022191,2]
[374578558,1753361458758,-491.05983361,0.00022191,2]
[374578559,1753361458768,-460.0,0.00022191,2]
[374578560,1753361458778,-460.0,0.00022191,2]
[374578561,1753361458788,-227.2,0.00022258,5]
[374578562,1753361458798,-1674.18014597,0.00022279,6]
[374578563,1753361458807,-430.26559,0.00022402,7]
[374578564,1753361458817,-151.0,0.00022402,7]
[374578565,1753361458827,-151.0,0.00022402,7]
[374578566,1753361458837,-430.26559,0.00022402,7]
[374578567,1753361458847,-1674.18014597,0.00022452,7]
[374578568,1753361458856,-151.0,0.00022465,7]
[374578569,1753361458866,-151.0,0.00022465,7]
[374578570,1753361458875,-151.0,0.00022465,7]
[374578571,1753361458887,-305.714176,0.00022465,7]
[374578572,1753361458897,-305.714176,0.00022465,7]
[374578573,1753361458907,-737.21,0.00022465,2]
[374578574,1753361458916,-460.0,0.00022465,2]
[374578575,1753361458926,-460.0,0.00022465,2]
[374578576,1753361458936,-460.0,0.00022465,2]
[374578577,1753361458946,-460.0,0.00022465,2]
[374578578,1753361458955,-460.0,0.00022465,2]
[374578579,1753361458965,-460.0,0.00022465,2]
[374578580,1753361458975,-460.0,0.00022465,2]
[374578581,1753361458984,-460.0,0.00022465,2]
[374578582,1753361458994,-460.0,0.00022465,2]
[374578583,1753361459003,-460.0,0.00022465,2]
[374578584,1753361459013,-460.0,0.00022465,2]
[374578585,1753361459022,-460.0,0.00022465,2]
[374578586,1753361459031,-1581.12,0.00022465,2]
[374578587,1753361459041,-1484.39,0.00022465,2]
[374578588,1753361459051,-460.0,0.00022465,2]
[374578589,1753361459060,-738.04,0.00022465,2]
[374578590,1753361459070,-460.0,0.00022465,2]
[374578591,1753361459079,-460.0,0.00022465,2]
[374578592,1753361459088,-460.0,0.00022465,2]